Cogmind - Beta 13 @@@ ROGUE MODE // 2024.05.20 @ 01:24:03 Player: Crackrock_Steady Result: Destroyed by S-27 Virus with Autogun Performance ------------- Evolutions (1) 500 Regions Visited (6) 1200 Robots Destroyed (45) 225 Value Destroyed (1109) 1109 Prototype IDs (2) 40 Alien Tech Used (0) 0 Bonus (614) 614 TOTAL SCORE: 3688 Bonus ------- High Alert Combat Kills 14 Met Imprinter 300 Was Imprinted 300 Cogmind --------- Core Integrity 0/400 Matter 300/300 Energy 27/100 System Corruption 0% Temperature Cool (0) Movement Core (150) Ox2 Location -6/Proximity Caves Parts ------- > --- POWER (1) -------- (None) > --- PROPULSION (4) --- (None) > --- UTILITY (2) ------ (None) > --- WEAPON (2) ------- RU-N14's Throwing Claymores > --- INVENTORY (5) ---- ECM Suite Mini Grenade Launcher Missile Launcher RU-N14's Throwing Claymores (4) Self-destruct Interrupter (49) Peak State ------------ > --- POWER ------------ Light Nuclear Core > --- PROPULSION ------- Flight Unit Flight Unit Flight Unit Flight Unit > --- UTILITY ---------- Experimental Sensor Array ECM Suite > --- WEAPON ----------- Mini Grenade Launcher RU-N14's Throwing Claymores > --- INVENTORY -------- ECM Suite Hacking Drone Bay Improved Light Cannon Self-destruct Interrupter Self-destruct Interrupter [Rating: 28] Favorites ----------- Power Ion Engine Engine Ion Engine Power Core Light Nuclear Core Propulsion Flight Unit Treads Light Treads Leg Aluminum Leg Flight Unit Flight Unit Utility Small Storage Unit Device ECM Suite Storage Small Storage Unit Processor Signal Interpreter Protection Light Armor Plating Weapon Mini Grenade Launcher Energy Gun Medium Laser Energy Cannon Beam Cannon Ballistic Gun Light Assault Rifle Ballistic Cannon Light Cannon Launcher Mini Grenade Launcher Special Weapon RU-N14's Throwing Claymores Build | -11 -10 -10 -9 -9 -7 -6 ------- Run | Yrd Mat Min Mat Min Zio Pro Slots Evolved 2 | . . . 2 . . . Power . | . . . . . . . Propulsion 2 | . . . 2 . . . Utility . | . . . . . . . Weapon . | . . . . . . . Parts Attached 33 | 7 1 1 11 9 3 1 Power 5 | 1 . . 2 2 . . Engine 3 | 1 . . 2 . . . Core 2 | . . . . 2 . . Reactor . | . . . . . . . Propulsion 11 | 2 . . 5 4 . . Treads 3 | 2 . . 1 . . . Leg 4 | . . . 4 . . . Wheel . | . . . . . . . Hover . | . . . . . . . Flight 4 | . . . . 4 . . Utility 6 | 2 . . 2 2 . . Device 3 | 1 . . . 2 . . Storage 1 | 1 . . . . . . Processor 1 | . . . 1 . . . Hackware . | . . . . . . . Protection 1 | . . . 1 . . . Artifact . | . . . . . . . Weapon 11 | 2 1 1 2 1 3 1 Energy Gun 2 | 2 . . . . . . Energy Cannon 1 | . . . 1 . . . Ballistic Gun 1 | . 1 . . . . . Ballistic Cannon 1 | . . 1 . . . . Launcher 3 | . . . 1 1 1 . Special Weapon 3 | . . . . . 2 1 Impact Weapon . | . . . . . . . Slashing Weapon . | . . . . . . . Piercing Weapon . | . . . . . . . Special Melee Weapon . | . . . . . . . Unidentified Prototypes 2 | . . . . 1 1 . Parts Lost 20 | . . . 12 . . 8 Power 3 | . . . 2 . . 1 Propulsion 8 | . . . 4 . . 4 Utility 4 | . . . 2 . . 2 Weapon 5 | . . . 4 . . 1 Highest Loss Streak 6 | . . . 6 . . 6 To Critical Strikes . | . . . . . . . Average Slot Usage (%) 82 | . 100 100 64 68 88 90 Engine 6 | . 14 14 10 . . . Core 4 | . . . . 8 11 9 Treads 8 | . 28 28 8 . . . Leg 3 | . . . 9 8 . . Flight 18 | . . . . 30 44 39 Device 12 | . 14 14 . 16 22 20 Storage 6 | . 14 14 11 . . . Processor 1 | . . . 3 . . . Energy Gun 4 | . 21 14 1 . . . Energy Cannon 3 | . . . 9 . . . Ballistic Cannon 4 | . . 13 7 . . . Launcher 7 | . . . 1 5 11 19 Naked Turns . | . . . . . . . Heaviest Build 17 | 14 14 16 17 9 16 16 Greatest Support 46 | 40 40 40 46 16 16 16 Greatest Overweight (x) 5 | . . . 5 . . 3 Average Overweight (x) . | . . . . . . . Largest Inventory Capacity 8 | 8 8 8 8 8 5 5 Average Capacity 6 | 7 8 8 8 5 5 5 Most Carried 8 | 5 7 8 8 8 5 5 Average Carried 5 | 2 4 7 7 2 4 5 Final Capacity 8 | 8 8 8 8 5 5 5 Final Carried 8 | 2 7 8 8 . 5 5 Class Distribution -------------------- 60% | Mutant 39% | Scavenger-Sprinter Dominant Class ---------------- Mutant | -10/Materials Mutant | -10/Mines Mutant | -9/Materials Mutant | -9/Mines Scavenger-Sprinter | -7/Zion Scavenger-Sprinter | -6/Proximity Caves Resources | -11 -10 -10 -9 -9 -7 -6 ----------- Run | Yrd Mat Min Mat Min Zio Pro Matter Collected 709 | 270 22 10 191 . 34 182 Remotely . | . . . . . . . Salvage Created 1443 | 137 267 . 945 . . 94 Parts 98 | 6 23 . 63 . . 6 Haulers Intercepted . | . . . . . . . Recyclers Shooed 2 | . . . 2 . . . Parts Field Recycled . | . . . . . . . Retrieved Matter . | . . . . . . . Parts Self-Destructed 2 | . . . . . . 2 Prevented . | . . . . . . . Kills | -11 -10 -10 -9 -9 -7 -6 ------- Run | Yrd Mat Min Mat Min Zio Pro Combat Hostiles Destroyed 31 | . 5 . 20 . . 6 Guns 4 | . 4 . . . . . Cannons 14 | . . . 14 . . . AOE 12 | . . . 6 . . 6 Classes Destroyed 9 | 2 3 . 4 . . . Worker 1 | . . . 1 . . . Builder 4 | . . . 4 . . . Tunneler 3 | 2 . . 1 . . . Recycler 3 | 1 1 . 1 . . . Mechanic 1 | . . . 1 . . . Watcher 2 | . 2 . . . . . Swarmer 13 | . 3 . 7 . . 3 Grunt 10 | . 2 . 7 . . 1 Sentry 8 | . . . 6 . . 2 Best Kill Streak 9 | 3 3 . 9 . . 4 Combat Bots Only 7 | . 3 . 7 . . 4 Max Kills in Single Turn 4 | 1 1 . 3 . . 4 Gunslinging . | . . . . . . . Exploded 4 | . . . 3 . . 4 Melee . | . . . . . . . Uniques/NPCs Destroyed . | . . . . . . . Combat | -11 -10 -10 -9 -9 -7 -6 -------- Run | Yrd Mat Min Mat Min Zio Pro Hostile Shots Fired 222 | . 28 . 109 . . 85 Missed 61 | . 6 . 22 . . 33 Damage Taken 2210 | . 284 . 1282 . . 644 Core 477 | . 77 . 137 . . 263 Absorbed by Shields . | . . . . . . . Core Remaining (%) 84 | 100 . 69 . . . . Volleys Fired 109 | 9 26 . 67 . . 7 Largest 2 | 2 2 . 2 . . 2 Hottest 95 | 90 90 . 95 . . 69 Shots Fired 160 | 18 40 . 91 . . 11 Gun 76 | 18 40 . 18 . . . Cannon 62 | . . . 62 . . . Launcher 20 | . . . 11 . . 9 Special 2 | . . . . . . 2 Kinetic 32 | . 12 . 20 . . . Thermal 106 | 18 28 . 60 . . . Explosive 11 | . . . . . . 11 Electromagnetic 11 | . . . 11 . . . Robot Hit Streak 14 | 7 7 . 14 . . 3 Robot Miss Streak 5 | 4 3 . 5 . . 2 Penetration Max . | . . . . . . . Secondary Targets 1 | . 1 . . . . . Max Gunslinging Chain 1 | . 1 . . . . . Shots Hit Robots 104 | 11 27 . 61 . . 5 Core Hits 71 | 4 12 . 41 . . 14 Critical Kills 2 | . 2 . . . . . Critical Parts Destroyed . | . . . . . . . Critical Strikes 8 | 1 3 . 2 . . 2 Burn 3 | 1 1 . 1 . . . Destroy 2 | . 2 . . . . . Blast 1 | . . . 1 . . . Sever 2 | . . . . . . 2 Melee Attacks . | . . . . . . . Impact . | . . . . . . . Slashing . | . . . . . . . Piercing . | . . . . . . . Sneak Attacks . | . . . . . . . Combat Hostiles . | . . . . . . . Follow-up Attacks . | . . . . . . . Damage Inflicted 2992 | 134 277 . 1832 . . 749 Guns 615 | 134 277 . 204 . . . Cannons 708 | . . . 708 . . . Explosions 1572 | . . . 904 . . 668 Melee . | . . . . . . . Ramming 16 | . . . 16 . . . Kinetic 261 | . 58 . 203 . . . Thermal 1375 | 134 219 . 1022 . . . Explosive 668 | . . . . . . 668 Electromagnetic 591 | . . . 591 . . . Impact . | . . . . . . . Slashing 81 | . . . . . . 81 Piercing . | . . . . . . . Highest Corruption 1 | . . . 1 1 1 . Average Corruption 1 | . . . 1 1 1 . Corruption Purged . | . . . . . . . Corruption Blocked . | . . . . . . . Effects 1 | . . . . 1 . . Matter Fused 1 | . . . . 1 . . Overload Shots . | . . . . . . . Overflow Damage 55 | . . . 42 . . 13 Projectiles 22 | . . . 22 . . . Explosions 33 | . . . 20 . . 13 Melee . | . . . . . . . Knockbacks 3 | . . . 3 . . . Impact . | . . . . . . . Kinetic 3 | . . . 3 . . . Secondary . | . . . . . . . Self-Inflicted Damage 187 | . . . 156 . . 31 Shots 9 | . . . 8 . . 1 Rammed . | . . . . . . . Targets Rammed 6 | . . . 6 . . . Kicked 6 | . . . 6 . . . Crushed . | . . . . . . . Highest Temperature 326 | 90 292 . 326 . . 92 Average Temperature 98 | 37 109 . 110 . . 53 Received Heat Transfer 789 | . 147 . 462 . . 180 Effects 1 | . . . 1 . . . Interference 1 | . . . 1 . . . Siege Activations . | . . . . . . . Robots Corrupted . | . . . . . . . Combat Hostiles . | . . . . . . . Parts Fried 1 | . . . 1 . . . Impact Corruptions . | . . . . . . . Robots Melted 1 | . 1 . . . . . Combat Hostiles 1 | . 1 . . . . . Parts Melted 3 | . 1 . 2 . . . Heat Transferred 3205 | 421 645 . 2139 . . . Parts Sabotaged . | . . . . . . . Parts Stolen . | . . . . . . . Parts Stripped . | . . . . . . . Power Chain Reactions 5 | . . . 5 . . . Alert | -11 -10 -10 -9 -9 -7 -6 ------- Run | Yrd Mat Min Mat Min Zio Pro Peak Influence 427 | 15 218 84 427 166 . . Initial 166 | . 9 84 32 166 . . Average 86 | 7 115 84 84 166 . . Maximum Alert Level 2 | . 1 . 2 . . . Low Security (%) 90 | 100 73 100 90 100 . . Level 1 9 | . 26 . 8 . . . Level 2 . | . . . 1 . . . Level 3 . | . . . . . . . Level 4 . | . . . . . . . Level 5 . | . . . . . . . High Security . | . . . . . . . Max Security . | . . . . . . . Squads Dispatched 3 | . . . 3 . . . Investigation 2 | . . . 2 . . . Extermination . | . . . . . . . Reinforcement 1 | . . . 1 . . . Assault . | . . . . . . . Garrison . | . . . . . . . Intercept . | . . . . . . . Searches Triggered . | . . . . . . . Construction Impeded 1 | . . . 1 . . . Haulers Reinforced . | . . . . . . . Active Scanning Responses . | . . . . . . . Cargo Convoy Interrupts . | . . . . . . . Stealth | -11 -10 -10 -9 -9 -7 -6 --------- Run | Yrd Mat Min Mat Min Zio Pro Distress Signals 7 | . 2 . 5 . . . Communications Jammed . | . . . . . . . Distress Signals . | . . . . . . . Times Spotted 53 | . 11 . 27 . . 15 Peak Tracking Total 13 | . 4 . 9 . . 13 Tactical Retreats . | . . . . . . . Traps | -11 -10 -10 -9 -9 -7 -6 ------- Run | Yrd Mat Min Mat Min Zio Pro Traps Triggered . | . . . . . . . Indirectly . | . . . . . . . Trap Hack Attempts . | . . . . . . . Triggered . | . . . . . . . Disarmed . | . . . . . . . Reprogrammed . | . . . . . . . Reused . | . . . . . . . Traps Extracted . | . . . . . . . Installed . | . . . . . . . Triggered . | . . . . . . . Machines | -11 -10 -10 -9 -9 -7 -6 ---------- Run | Yrd Mat Min Mat Min Zio Pro Machines Disabled 8 | . . . 7 . . 1 Max in Single Turn 3 | . . . 3 . . 1 Machines Repaired . | . . . . . . . Machines Dismantled . | . . . . . . . Machines Sabotaged . | . . . . . . . Overloaded Fab Kills . | . . . . . . . Hacking | -11 -10 -10 -9 -9 -7 -6 --------- Run | Yrd Mat Min Mat Min Zio Pro Machines Accessed 4 | . 2 . 2 . . . Terminals 3 | . 1 . 2 . . . Fabricators . | . . . . . . . Repair Stations . | . . . . . . . Recycling Units 1 | . 1 . . . . . Scanalyzers . | . . . . . . . Garrison Access . | . . . . . . . Total Hacks 17 | . 7 . 10 . . . Successful 8 | . 4 . 4 . . . Failed 9 | . 3 . 6 . . . Catastrophic 2 | . . . 2 . . . Database Lockouts . | . . . . . . . Manual 5 | . 1 . 4 . . . Terminals 13 | . 3 . 10 . . . Fabricators . | . . . . . . . Repair Stations . | . . . . . . . Recycling Units 4 | . 4 . . . . . Scanalyzers . | . . . . . . . Garrison Access . | . . . . . . . Terminal Hacks 7 | . 3 . 4 . . . Branch Access Points 1 | . . . 1 . . . Emergency Access Points 2 | . 1 . 1 . . . Terminal Index 2 | . 1 . 1 . . . Zone Layout 2 | . 1 . 1 . . . Fabricator Hacks . | . . . . . . . Repair Station Hacks . | . . . . . . . Recycling Unit Hacks 1 | . 1 . . . . . Retrieve Components 1 | . 1 . . . . . Scanalyzer . | . . . . . . . Garrison Access Hacks . | . . . . . . . Unauthorized Hacks . | . . . . . . . Terminals . | . . . . . . . Fabricators . | . . . . . . . Repair Stations . | . . . . . . . Recycling Units . | . . . . . . . Scanalyzers . | . . . . . . . Garrison Access . | . . . . . . . Data Cores Recovered . | . . . . . . . Used . | . . . . . . . Hacking Detections 3 | . 1 . 2 . . . Full Trace Events 2 | . . . 2 . . . Feedback Events . | . . . . . . . Feedback Blocked . | . . . . . . . Robot Schematics Acquired . | . . . . . . . Robots Built . | . . . . . . . Authchips . | . . . . . . . Time . | . . . . . . . Total Robot Build Rating . | . . . . . . . Part Schematics Acquired . | . . . . . . . Parts Built . | . . . . . . . Authchips . | . . . . . . . Time . | . . . . . . . Total Part Build Rating . | . . . . . . . Parts Repaired . | . . . . . . . Time . | . . . . . . . Parts Recycled . | . . . . . . . Recycled Matter . | . . . . . . . Retrieved Matter . | . . . . . . . Retrieved Components . | . . . . . . . Parts Scanalyzed . | . . . . . . . Part Schematics Acquired . | . . . . . . . Parts Damaged . | . . . . . . . Bothacking | -11 -10 -10 -9 -9 -7 -6 ------------ Run | Yrd Mat Min Mat Min Zio Pro Used RIF Installer . | . . . . . . . Robots Hacked . | . . . . . . . Non-combat . | . . . . . . . Combat . | . . . . . . . Robot Hacks Applied . | . . . . . . . Relay Couplers Released . | . . . . . . . Fabnet Peak Effective % . | . . . . . . . Robots Rewired . | . . . . . . . Allies Hacked . | . . . . . . . Hacks Repelled . | . . . . . . . Allies | -11 -10 -10 -9 -9 -7 -6 -------- Run | Yrd Mat Min Mat Min Zio Pro Total Allies 4 | . . . . . 4 . Largest Group 4 | . . . . . 4 . Highest-Rated Group 156 | . . . . . 156 . Highest-Rated Ally 41 | . . . . . 41 . Total Orders . | . . . . . . . Ally Attacks . | . . . . . . . Total Damage . | . . . . . . . Kills . | . . . . . . . Allies Corrupted . | . . . . . . . Allies Melted . | . . . . . . . Intel | -11 -10 -10 -9 -9 -7 -6 ------- Run | Yrd Mat Min Mat Min Zio Pro Robot Analysis Total . | . . . . . . . Derelict Logs Recovered 3 | . . . . . 1 2 Drone Launches . | . . . . . . . Drone Recoveries . | . . . . . . . Exploration | -11 -10 -10 -9 -9 -7 -6 ------------- Run | Yrd Mat Min Mat Min Zio Pro Turns Passed 3135 | 115 301 341 1048 37 657 636 Spaces Moved 3496 | 61 145 203 334 19 1706 1028 Core 54 | 22 . . 29 . . 3 Treads 512 | 39 145 203 125 . . . Legs 180 | . . . 180 . . . Wheels . | . . . . . . . Hover . | . . . . . . . Flight 2750 | . . . . 19 1706 1025 Fastest Speed 31 | 50 160 160 120 31 31 31 Average Speed 58 | 120 160 160 147 33 31 37 Slowest Speed 300 | 160 160 160 300 57 31 200 Overloaded Moves . | . . . . . . . Propulsion Burnouts . | . . . . . . . Robots Hopped . | . . . . . . . Cave-ins Triggered . | . . . . . . . Exploration Rate (%) 39 | 4 27 53 34 6 89 60 Regions Visited 6 Branch Regions 4 Pre-discovered Areas . | . . . . . . . Known Exits Taken 1 | . . . 1 . . . Unknown Exits Taken 5 | 1 1 1 . 1 1 . Scrap Searched 5 | . . 1 . . 2 2 Spaces Dug . | . . . . . . . Terrain Destroyed 87 | . . . 10 . . 77 Melee . | . . . . . . . Projectile . | . . . . . . . AOE 87 | . . . 10 . . 77 Terrain Rammed . | . . . . . . . Walls Destroyed . | . . . . . . . Machines Disabled . | . . . . . . . Actions | -11 -10 -10 -9 -9 -7 -6 --------- Run | Yrd Mat Min Mat Min Zio Pro Total 4426 | 84 176 220 796 50 1835 1265 Wait 738 | . . 12 371 17 109 229 Move 3490 | 60 144 202 333 18 1705 1028 Hop . | . . . . . . . Pick Up 33 | 8 5 3 5 2 10 . Fast Attach 10 | 1 . . 6 . 3 . Attach 19 | 6 . . 4 9 . . Detach 2 | . . . . 1 1 . Swap 4 | . 1 1 1 . . 1 Drop 15 | . . 2 3 3 7 . Fire 109 | 9 26 . 67 . . 7 Melee . | . . . . . . . Ram . | . . . . . . . Kick 6 | . . . 6 . . . Crush . | . . . . . . . Escape Stasis . | . . . . . . . Rewire . | . . . . . . . Trap . | . . . . . . . Miscellaneous . | . . . . . . . Route ------- -11/Scrapyard -10/Materials (discovered 2 exits: *Mat / [*Min]) -10/Mines -9/Materials (discovered 3 exits: *Min / Sto x2) -9/Mines -7/Zion -6/Proximity Caves (discovered 1 exit: Fac) History --------- Turn | Location | Event 2 | -11/Scrapyard | Met Revision 17 20 | -11/Scrapyard | Discovered new exit (range 16) 116 | -11/Scrapyard | Entered Materials 279 | -10/Materials | Discovered new exit (range 14) 305 | -10/Materials | Build established: Mutant 398 | -10/Materials | Discovered new exit (range 12) 417 | -10/Materials | Entered Mines 428 | -10/Mines | Met a Derelict bent on vengeance 467 | -10/Mines | Found a damaged Exp. Sensor Array with a note attached 471 | -10/Mines | Found Prototype Device 753 | -10/Mines | Discovered new exit (range 3) 758 | -10/Mines | Entered Materials 758 | -9/Materials | Evolved 2 slots: Propulsion x2 768 | -9/Materials | Identified exit to Mines 768 | -9/Materials | Identified exit to Storage 884 | -9/Materials | Lost 5 parts (1p2n1u1w) 1785 | -9/Materials | Destroyed 7 combat bots 1806 | -9/Materials | Entered Mines 1808 | -9/Mines | Identified Exp. Sensor Array 1835 | -9/Mines | Lost 6 parts (1p2n1u2w) 1841 | -9/Mines | A Derelict revealed a hidden shortcut to a safe place 1843 | -9/Mines | Entered Zion 1857 | -7/Zion | Given the Hacking Drone Bay 1857 | -7/Zion | Found Prototype Device 1863 | -7/Zion | System corruption cleaned by Quarantine Array 1910 | -7/Zion | Learned location of 1 exit from Factory 2104 | -7/Zion | Build established: Scavenger-Sprinter 2247 | -7/Zion | Found Prototype Special Weapon 2247 | -7/Zion | Identified RU-N14's Throwing Claymores 2250 | -7/Zion | Found RU-N14's Throwing Claymores 2252 | -7/Zion | Found RU-N14's Throwing Claymores 2254 | -7/Zion | Found RU-N14's Throwing Claymores 2332 | -7/Zion | Imprinted 2334 | -7/Zion | Declared Zion's savior 2406 | -7/Zion | Given A8's code to call for help 2408 | -7/Zion | Discovered new exit (range 10) 2500 | -7/Zion | Entered Proximity Caves 2503 | -6/Proximity Caves | Learned Factory terminal intel 2648 | -6/Proximity Caves | Received a Behemoth hack from an annoying Tinkerer 2886 | -6/Proximity Caves | Identified exit to Factory 3036 | -6/Proximity Caves | Attracted the attention of an 0b10 checkpoint 3055 | -6/Proximity Caves | Core integrity fell below 50% 3085 | -6/Proximity Caves | Lost 6 parts (1p3n1u1w) 3124 | -6/Proximity Caves | Attracted the attention of an 0b10 base 3134 | -6/Proximity Caves | Core integrity fell below 20% 3136 | -6/Proximity Caves | Destroyed by S-27 Virus with Autogun Last Messages --------------- 03059_ Carbon-fiber Leg fries itself beyond repair. 03065_ Acquired 40 matter. 03072_ The unstable cave ceiling collapses. 03091_ Searching scrap... 03091_ Found 23 Matter. 03091_ Found Proton Cannon. 03091_ Found Matter Compressor. 03091_ Found 34 Matter. 03092_ Acquired 34 matter. 03095_ Acquired 16 matter. 03105_ The unstable cave ceiling collapses. 03123_ Slug penetrates Wall. 03125_ Y-64 Sentinel KE Penetrator severed. 03125_ Y-64 Sentinel destroyed. 03125_ S-27 Virus destroyed. 03125_ Machine disabled. 03130_ Flight Unit destroyed. 03132_ ECM Suite destroyed. 03133_ Neutrino Core fries itself beyond repair. Map ----- +----------------------------------------------------+ | ??## ## ##???# ##??## #???????????# | | ???##### #???## #?### #???????????## | | ???????## #???# ### ##????????????### | | ????????#####??## ## #???????????????? | | ???????????????# # #####???????????? | | ???????????????# # # ## #???????????? | | ???????????????## # ## ##??????????? | | ??????????????## ####?## ####???????? | | ??????????????# # ##?# #???????? | | ??????????????## #?## ##???????? | | ??????????????# # #??### ##????????? | | ??????????????## ####?# ## #?????????? | | ???????????????## % #?# ####?????????? | | ???????????????## ! #?# #????????????? | | ???????????????## # #] #?# ????????????? | | ???????????????### #### #?#####???????????? | | ?????????????????## #??? #?????????????????? | | ??????????????????# ####??# #???#?????????????? | | ??????????????????## #???## ## ####??????????? | | ???????????????##### #### ?????????? | | ???????????????# #????????????? | | ???????????????# #????????????? | | ???????????????# ######/s########???????????????? | | ???????????????# ????# #???? #???????????????? | | ???????????????# ?????# ss[# #???????????????? | | ???????????????#??????# @[ #???????????????? | | ??????????????????????# % [% ##???????????????? | | ??????????????????????# % #???????????????? | | ??????????????????????#ggg +???????????????? | | ?????????????????????? gg +???????????????? | | ????????????????????? g #???????????????? | | ???????????????????? #???????????????? | | ??????????????????? #???????????????? | | ??????????????????#T #???????????????? | | ??????????????????#" """#???????????????? | | ??????????????????#"" "??????????????????? | | ??????????????????#"""""" "??????????????????? | | ????????????????????######++###??????????????????? | | ?????????????????????????????????????????????????? | | ?????????????????????????????????????????????????? | | ?????????????????????????????????????????????????? | | ?????????????????????????????????????????????????? | | ?????????????????????????????????????????????????? | | ?????????????????????????????????????????????????? | | ?????????????????????????????????????????????????? | | ?????????????????????????????????????????????????? | | ?????????????????????????????????????????????????? | | ?????????????????????????????????????????????????? | | ?????????????????????????????????????????????????? | | ?????????????????????????????????????????????????? | +----------------------------------------------------+ Best States ------------- Heat Dissipation 28 Energy Generation 14 Energy Capacity 250 Matter Stores 300 Matter Capacity 300 Sight Range 16 Robot Scan Range 20 Terrain Scan Density 10 ECM Strength 1 Armor Coverage 150 Evasion (%) 63 Recoil Reduction 2 Item Schematics ----------------- None Robot Schematics ------------------ None Fabricated ------------ Nothing Alien Tech Used ----------------- None Achievements -------------- None Challenges ------------ None Game ------ Seed AntigravSuspensionSystem Manual? 0 Play Time 00:39:48 Cumulative 13.0 hours Start 2024.05.20 @ 00:43:03 End 2024.05.20 @ 01:24:03 Sessions 1 Manual Loads 0 Difficulty Rogue Special Mode None Game No. 29 Rogue 29 Adventurer 0 Explorer 0 Win Type - Total 0 Types 0/0/0/0/0/0/0/0/0 Lore% 14 Gallery% 18 Achievement% 17 Wizard Run 0 Options --------- Layout 1 ASCII 0 Keyboard 0 Movement Arrows Keybinds 0 Fullscreen 1 Font 24/Smallcaps Map View 50x35 Zoom Use 0% Tactical HUD 1 Map Filters NONE Filters NONE Steam 1 RUN: eb5c3178-5906-4812-99d0-b17482b8f384